fUSD/lending_fUSD_20250427
["ID","MTS","AMOUNT","RATE_DAILY","PERIOD"]
[359115601,1745713844790,-419.2,0.00019969,2]
[359115603,1745713844799,-400.0,0.00019969,2]
[359115605,1745713844808,-500.0,0.00019969,2]
[359115607,1745713844817,-406.64,0.00019969,2]
[359115609,1745713844825,-400.0,0.00019969,2]
[359115611,1745713844834,-400.0,0.00019969,2]
[359115613,1745713844844,-400.0,0.00019969,2]
[359115615,1745713844853,-409.06,0.00019969,2]
[359115617,1745713844863,-1300.45,0.00019969,2]
[359115619,1745713844873,-535.42,0.00019969,2]
[359115621,1745713844883,-440.52,0.00019969,2]
[359115623,1745713844893,-400.0,0.00019969,2]
[359115624,1745713844903,-450.6,0.00019969,2]
[359115626,1745713844913,-499.04,0.00019969,2]
[359115629,1745713844923,-400.0,0.00019969,2]
[359115631,1745713844932,-400.0,0.00019969,2]
[359115633,1745713844942,-400.0,0.00019969,2]
[359115635,1745713844951,-400.0,0.00019969,2]
[359115636,1745713844961,-400.0,0.00019969,2]
[359115638,1745713844970,-400.0,0.00019969,2]
[359115640,1745713844979,-400.0,0.00019969,2]
[359115642,1745713844989,-400.0,0.00019969,2]
[359115644,1745713844998,-400.0,0.00019969,2]
[359115646,1745713845008,-527.03,0.00019969,2]
[359115648,1745713845017,-400.0,0.00019969,2]
[359115650,1745713845027,-400.0,0.00019969,2]
[359115652,1745713845037,-400.0,0.00019969,2]
[359115654,1745713845046,-4623.8,0.00019969,2]
[359115656,1745713845056,-400.0,0.00019969,2]
[359115659,1745713845067,-400.0,0.00019969,2]
[359115660,1745713845076,-400.0,0.00019969,2]
[359115662,1745713845086,-400.0,0.00019969,2]
[359115664,1745713845096,-484.81,0.00019969,2]
[359115666,1745713845108,-300.0,0.00019969,2]
[359115668,1745713845118,-400.0,0.00019969,2]
[359115671,1745713845129,-400.0,0.00019969,2]
[359115673,1745713845139,-400.0,0.00019969,2]
[359115674,1745713845148,-400.0,0.00019969,2]
[359115676,1745713845158,-400.0,0.00019969,2]
[359115678,1745713845168,-400.0,0.00019969,2]
[359115680,1745713845178,-400.0,0.00019969,2]
[359115682,1745713845187,-536.79,0.00019969,2]
[359115684,1745713845197,-513.36,0.00019969,2]
[359115686,1745713845207,-400.0,0.0001997,2]
[359115688,1745713845216,-400.0,0.0001997,2]
[359115690,1745713845226,-400.0,0.0001997,2]
[359115692,1745713845236,-400.0,0.0001997,2]
[359115694,1745713845246,-400.0,0.0001997,2]
[359115696,1745713845256,-400.0,0.0001997,2]
[359115698,1745713845265,-400.0,0.0001997,2]
[359115700,1745713845274,-400.0,0.0001997,2]
[359115702,1745713845284,-400.0,0.0001997,2]
[359115705,1745713845294,-400.0,0.0001997,2]
[359115707,1745713845305,-801.45,0.0001997,2]
[359115708,1745713845315,-400.0,0.0001997,2]
[359115710,1745713845324,-400.0,0.0001997,2]
[359115712,1745713845334,-400.0,0.0001997,2]
[359115714,1745713845345,-1133.41,0.0001997,2]
[359115717,1745713845355,-400.0,0.0001997,2]
[359115718,1745713845364,-400.0,0.0001997,2]
[359115721,1745713845374,-400.0,0.0001997,2]
[359115722,1745713845384,-400.0,0.0001997,2]
[359115725,1745713845394,-555.08,0.0001997,2]
[359115726,1745713845404,-400.0,0.0001997,2]
[359115729,1745713845414,-400.0,0.0001997,2]
[359115731,1745713845425,-400.0,0.0001997,2]
[359115733,1745713845435,-400.0,0.0001997,2]
[359115735,1745713845444,-400.0,0.0001997,2]
[359115737,1745713845454,-1271.03,0.0001997,2]
[359115738,1745713845463,-400.0,0.0001997,2]
[359115740,1745713845472,-407.64,0.0001997,2]
[359115742,1745713845481,-400.0,0.0001997,2]
[359115744,1745713845490,-400.0,0.0001997,2]
[359115746,1745713845500,-435.39,0.0001997,2]
[359115748,1745713845509,-473.15,0.0001997,2]
[359115750,1745713845519,-400.0,0.0001997,2]
[359115752,1745713845528,-166.09735684,0.0001997,2]
[359115754,1745713845538,-400.0,0.0001997,2]
[359115756,1745713845548,-400.0,0.0001997,2]
[359115758,1745713845557,-426.53,0.0001997,2]
[359115760,1745713845567,-417.01,0.0001997,2]
[359115762,1745713845576,-400.0,0.0001997,2]
[359115765,1745713845586,-400.0,0.0001997,2]
[359115767,1745713845597,-569.21,0.0001997,2]
[359115768,1745713845606,-483.73,0.0001997,2]
[359115771,1745713845616,-400.0,0.0001997,2]
[359115772,1745713845625,-400.0,0.0001997,2]
[359115773,1745713845635,-485.08,0.0001997,2]
[359115774,1745713845644,-2566.67,0.0001997,2]
[359115775,1745713845654,-400.0,0.0001997,2]
[359115776,1745713845665,-400.0,0.0001997,2]
[359115777,1745713845674,-503.85,0.0001997,2]
[359115778,1745713845684,-400.0,0.0001997,2]
[359115779,1745713845693,-465.53,0.0001997,2]
[359115780,1745713845792,-400.0,0.0001997,2]
[359115782,1745713845803,-515.34,0.0001997,2]
[359115783,1745713845812,-400.0,0.0001997,2]
[359115785,1745713845822,-578.19,0.0001997,2]
[359115787,1745713845832,-400.0,0.0001997,2]
[359115789,1745713845841,-400.0,0.0001997,2]
[359115791,1745713845851,-400.0,0.0001997,2]
[359115793,1745713845861,-400.0,0.0001997,2]
[359115795,1745713845871,-400.0,0.0001997,2]
[359115797,1745713845883,-400.0,0.0001997,2]
[359115799,1745713845892,-400.0,0.0001997,2]
[359115801,1745713845902,-592.74,0.0001997,2]
[359115803,1745713845911,-400.0,0.0001997,2]
[359115805,1745713845921,-400.0,0.0001997,2]
[359115807,1745713845931,-400.0,0.0001997,2]
[359115809,1745713845940,-413.68,0.0001997,2]
[359115811,1745713845948,-652.77,0.0001997,2]
[359115813,1745713845958,-701.8,0.0001997,2]
[359115815,1745713845968,-468.91,0.0001997,2]
[359115817,1745713845977,-400.0,0.0001997,2]
[359115819,1745713845986,-400.0,0.0001997,2]
[359115821,1745713845995,-400.0,0.0001997,2]
[359115822,1745713846004,-400.0,0.0001997,2]
[359115824,1745713846013,-400.0,0.0001997,2]
[359115826,1745713846022,-400.0,0.0001997,2]
[359115828,1745713846031,-471.18,0.0001997,2]
[359115830,1745713846038,-400.0,0.0001997,2]
[359115832,1745713846046,-400.0,0.0001997,2]
[359115834,1745713846054,-400.0,0.0001997,2]
[359115836,1745713846061,-400.0,0.0001997,2]
[359115838,1745713846070,-400.0,0.0001997,2]
[359115841,1745713846078,-400.0,0.0001997,2]
[359115842,1745713846086,-400.0,0.0001997,2]
[359115844,1745713846094,-529.43,0.0001997,2]
[359115846,1745713846104,-400.0,0.0001997,2]
[359115848,1745713846113,-400.0,0.0001997,2]
[359115850,1745713846123,-157.54515362,0.0001997,2]
[359115852,1745713846133,-659.49,0.0001997,2]
[359115854,1745713846143,-3041.59,0.0001997,2]
[359115856,1745713846151,-400.0,0.0001997,2]
[359115858,1745713846160,-404.96,0.0001997,2]
[359115860,1745713846169,-400.0,0.0001997,2]
[359115862,1745713846179,-649.67,0.0001997,2]
[359115864,1745713846188,-419.26,0.0001997,2]
[359115866,1745713846197,-488.53,0.0001997,2]
[359115868,1745713846205,-400.0,0.0001997,2]
[359115870,1745713846215,-400.0,0.0001997,2]
[359115872,1745713846224,-400.0,0.0001997,2]
[359115874,1745713846234,-669.26,0.0001997,2]
[359115876,1745713846243,-400.0,0.0001997,2]
[359115878,1745713846252,-400.0,0.0001997,2]
[359115880,1745713846263,-400.0,0.0001997,2]
[359115882,1745713846272,-449.99,0.0001997,2]
[359115884,1745713846281,-400.0,0.0001997,2]
[359115886,1745713846291,-400.0,0.0001997,2]
[359115888,1745713846300,-638.94,0.0001997,2]
[359115890,1745713846309,-400.0,0.0001997,2]
[359115892,1745713846319,-479.59,0.0001997,2]
[359115894,1745713846328,-900.42,0.0001997,2]
[359115896,1745713846337,-441.86,0.0001997,2]
[359115898,1745713846346,-400.0,0.0001997,2]
[359115900,1745713846356,-719.9,0.0001997,2]
[359115902,1745713846365,-1163.44,0.0001997,2]
[359115904,1745713846374,-400.0,0.0001997,2]
[359115906,1745713846385,-440.33,0.0001997,2]
[359115908,1745713846397,-21704.61592305,0.0001997,2]
[359115945,1745713846744,-1125.25000112,0.0001997,2]
[359115947,1745713846756,-5529.00000005,0.0001997,2]
[359115949,1745713846767,-468.79,0.0001997,2]
[359116010,1745713847335,-1492.50167946,0.0001997,2]
[359116012,1745713847347,-2009.34507592,0.0001997,2]
[359116014,1745713847358,-1952.24961869,0.0001997,2]
[359116032,1745713849364,-3262.32892012,0.0001997,2]
[359116033,1745713849377,-40541.53878159,0.0001997,2]
[359116034,1745713849387,-400.0,0.0001997,2]
[359116035,1745713849397,-400.0,0.0001997,2]
[359116036,1745713849407,-400.0,0.0001997,2]
[359116037,1745713849418,-400.0,0.0001997,2]
[359116038,1745713849428,-479.67,0.0001997,2]
[359116039,1745713849438,-714.01,0.0001997,2]
[359116040,1745713849448,-510.83,0.0001997,2]
[359116041,1745713849459,-400.0,0.0001997,2]
[359116042,1745713849468,-626.43,0.0001997,2]
[359116043,1745713849478,-400.0,0.0001997,2]
[359116044,1745713849488,-400.0,0.0001997,2]
[359116045,1745713849498,-590.03,0.0001997,2]
[359116046,1745713849508,-457.2,0.0001997,2]
[359116047,1745713849517,-400.0,0.0001997,2]
[359116048,1745713849527,-400.0,0.0001997,2]
[359116049,1745713849538,-400.0,0.0001997,2]
[359116050,1745713849548,-400.0,0.0001997,2]
[359116051,1745713849558,-616.34,0.0001997,2]
[359116052,1745713849567,-506.36,0.0001997,2]
[359116053,1745713849577,-400.0,0.0001997,2]
[359116055,1745713849587,-465.58,0.0001997,2]
[359116057,1745713849596,-484.15,0.0001997,2]
[359116059,1745713849607,-400.0,0.0001997,2]
[359116061,1745713849617,-442.14,0.0001997,2]
[359116063,1745713849628,-529.61,0.0001997,2]
[359116065,1745713849638,-400.0,0.0001997,2]
[359116067,1745713849647,-661.78,0.0001997,2]
[359116069,1745713849658,-215.23,0.0001997,2]
[359116071,1745713849667,-400.0,0.0001997,2]
[359116073,1745713849677,-447.43,0.0001997,2]
[359116076,1745713849687,-431.72,0.0001997,2]
[359116078,1745713849697,-467.22,0.0001997,2]
[359116080,1745713849707,-400.0,0.0001997,2]
[359116082,1745713849716,-994.3,0.0001997,2]
[359116084,1745713849726,-400.0,0.0001997,2]
[359116086,1745713849735,-400.0,0.0001997,2]
[359116088,1745713849745,-637.09,0.0001997,2]
[359116090,1745713849755,-400.0,0.0001997,2]
[359116092,1745713849765,-403.48,0.0001997,2]
[359116094,1745713849775,-2077.89,0.0001997,2]
[359116096,1745713849784,-755.76,0.0001997,2]
[359116098,1745713849793,-400.0,0.0001997,2]
[359116100,1745713849803,-400.0,0.0001997,2]
[359116102,1745713849813,-695.63,0.0001997,2]
[359116104,1745713849822,-376.78939914,0.0001997,2]
[359116106,1745713849833,-400.0,0.0001997,2]
[359116108,1745713849842,-400.0,0.0001997,2]
[359116110,1745713849854,-495.66,0.0001997,2]
[359116112,1745713849864,-400.0,0.0001997,2]
[359116114,1745713849873,-1879.98,0.0001997,2]
[359116116,1745713849883,-400.0,0.0001997,2]
[359116118,1745713849892,-400.0,0.0001997,2]
[359116120,1745713849903,-3559.06,0.0001997,2]
[359116122,1745713849913,-638.71,0.0001997,2]
[359116124,1745713849923,-400.0,0.0001997,2]
[359116126,1745713849933,-6.91458484,0.0001997,2]
[359116130,1745713849962,-670.87541516,0.0001997,2]
[359116132,1745713849971,-820.36,0.0001997,2]
[359116134,1745713849981,-400.0,0.0001997,2]
[359116136,1745713849991,-516.86,0.0001997,2]
[359116138,1745713850001,-400.0,0.0001997,2]
[359116140,1745713850010,-424.2,0.0001997,2]
[359116142,1745713850020,-400.0,0.0001997,2]
[359116144,1745713850030,-400.0,0.0001997,2]
[359116146,1745713850039,-72109.22,0.0001997,2]
[359116148,1745713850050,-437.01,0.0001997,2]
[359116150,1745713850061,-400.0,0.0001997,2]
[359116152,1745713850071,-578.52,0.0001997,2]
[359116154,1745713850081,-1019.76,0.0001997,2]
[359116156,1745713850091,-4106.15,0.0001997,2]
[359116158,1745713850100,-400.0,0.00019971,2]
[359116160,1745713850110,-400.0,0.00019971,2]
[359116162,1745713850119,-400.0,0.00019971,2]
[359116164,1745713850129,-400.0,0.00019971,2]
[359116166,1745713850139,-400.0,0.00019971,2]
[359116168,1745713850150,-440.63,0.00019971,2]
[359116170,1745713850161,-400.0,0.00019971,2]
[359116196,1745713850399,-400.0,0.00019971,2]
[359116198,1745713850409,-400.0,0.00019971,2]
[359116200,1745713850419,-400.0,0.00019971,2]
[359116202,1745713850428,-400.0,0.00019971,2]
[359116204,1745713850438,-400.0,0.00019971,2]
[359116206,1745713850448,-400.0,0.00019971,2]
[359116208,1745713850458,-400.0,0.00019971,2]
[359116210,1745713850467,-510.92,0.00019971,2]
[359116212,1745713850477,-553.17,0.00019971,2]
[359116214,1745713850487,-262.85,0.00019971,2]
[359116216,1745713850496,-400.0,0.00019971,2]
[359116218,1745713850505,-237.39545282,0.00019971,2]
[359116220,1745713850514,-404.39,0.00019971,2]
[359116222,1745713850524,-400.0,0.00019971,2]
[359116224,1745713850533,-430.31,0.00019971,2]
[359116226,1745713850543,-400.0,0.00019971,2]
[359116228,1745713850552,-400.0,0.00019971,2]
[359116230,1745713850561,-400.0,0.00019971,2]
[359116232,1745713850571,-400.0,0.00019971,2]
[359116233,1745713850580,-614.26,0.00019971,2]
[359116235,1745713850590,-205.42009412,0.00019971,2]
[359116237,1745713850599,-400.0,0.00019971,2]
[359116239,1745713850610,-400.0,0.00019971,2]
[359116241,1745713850619,-150.0,0.00019972,2]
[359116244,1745713850629,-500.0,0.00019973,2]
[359116246,1745713850638,-187.0,0.00019973,2]
[359116248,1745713850648,-240.83368735,0.00019973,2]
[359116250,1745713850658,-150.0,0.00019977,2]
[359116251,1745713850667,-31236.64332038,0.0001998,2]
[359116254,1745713850679,-1141.89,0.0001998,2]
[359116285,1745713850976,-416.14,0.00019695,2]
[359116287,1745713850985,-172.44764228,0.0001998,2]
[359116290,1745713851005,-3252.39057352,0.0001998,2]
[359116334,1745713851442,-400.0,0.00019695,2]
[359116336,1745713851452,-1701.37,0.00019696,2]
[359116338,1745713851462,-400.0,0.00019969,2]
[359116340,1745713851472,-400.0,0.00019969,2]
[359116341,1745713851482,-1701.37,0.0001997,2]
[359116343,1745713851491,-40305.11224927,0.0001998,2]
[359116346,1745713851507,-22437.40331519,0.0001998,2]
[359116349,1745713851530,-676.12980216,0.0001998,2]
[359116663,1745713967248,250.0,0.00018883,2]
[359116735,1745714246993,1000.0,0.00018833,2]
[359116778,1745714411837,187.66,0.0001877,2]
[359116782,1745714420586,1003.35,0.00036,60]
[359116804,1745714489707,150.0,0.00018817,7]
[359116818,1745714556092,575.073743,0.00036986,60]
[359116819,1745714571132,500.0,0.00036986,60]
[359116820,1745714578973,-152.54693735,0.00019495,2]
[359116821,1745714694573,437.42,0.00016797,2]
[359116822,1745714694770,437.42,0.00019061,2]
[359116823,1745714722597,1955.0,0.00019301,2]
[359116824,1745714803554,385.57,0.00018724,2]
[359116825,1745714930349,250.0,0.00017,2]
[359116826,1745714931403,300.0,0.00019,2]
[359116834,1745715031526,-300.0,0.00019594,2]
[359116835,1745715031537,-1200.0,0.00019594,2]
[359116836,1745715031547,-239.3598138,0.00019594,2]
[359116837,1745715031560,-60.6401862,0.00019594,2]
[359116838,1745715031570,-200.0,0.00019595,2]
[359116839,1745715031580,-53.85140066,0.00019595,2]
[359116840,1745715031597,-196.14859934,0.00019595,2]
[359116841,1745715031607,-80.51029571,0.00019595,2]
[359116842,1745715031618,-119.48970429,0.00019595,2]
[359116843,1745715031628,-458.59819331,0.00019595,2]
[359116844,1745715031640,-816.01819361,0.00019595,2]
[359116845,1745715031654,-400.02133224,0.00019595,2]
[359116846,1745715031664,-160.95171237,0.00019595,2]
[359116847,1745715031674,-1622.53755654,0.00019595,2]
[359116848,1745715031684,-2814.8303,0.00019595,2]
[359116849,1745715031694,-500.0,0.00019596,2]
[359116850,1745715031704,-2344.62076183,0.00019597,2]
[359116851,1745715031716,-10473.99896404,0.00019597,2]
[359116852,1745715036695,-1035.87907713,0.00019597,2]
[359116853,1745715036708,-496.59156997,0.00019597,2]
[359116858,1745715037431,-203.3622,0.00019594,2]
[359116859,1745715037440,-2950.85112703,0.00019597,2]
[359116860,1745715037450,-469.38709508,0.00019629,2]
[359116861,1745715037486,-1205.25062408,0.00019629,2]
[359116862,1745715037496,-1622.53755652,0.00019629,2]
[359116863,1745715037506,-1674.63771916,0.00019663,2]
[359116864,1745715037516,-1622.53755652,0.00019663,2]
[359116865,1745715037525,-160.95171233,0.00019671,2]
[359116866,1745715037534,-500.0,0.00019673,2]
[359116867,1745715037544,-207.4,0.00019683,2]
[359116868,1745715037553,-348.11,0.00019684,2]
[359116869,1745715037562,-286.82340837,0.00019693,2]
[359116870,1745715037572,-400.0,0.00019694,2]
[359116871,1745715037582,-400.0,0.00019694,2]
[359116872,1745715037592,-491.97,0.00019694,2]
[359116873,1745715037601,-400.0,0.00019694,2]
[359116874,1745715037611,-807.79,0.00019694,2]
[359116875,1745715037620,-394.31605965,0.00019694,2]
[359116876,1745715037630,-400.0,0.00019694,2]
[359116877,1745715037639,-400.0,0.00019694,2]
[359116878,1745715037649,-400.0,0.00019694,2]
[359116879,1745715037659,-400.0,0.00019694,2]
[359116880,1745715037669,-400.0,0.00019694,2]
[359116881,1745715037679,-430.16,0.00019694,2]
[359116882,1745715037688,-400.0,0.00019694,2]
[359116883,1745715037698,-400.0,0.00019694,2]
[359116884,1745715037708,-400.0,0.00019694,2]
[359116885,1745715037718,-400.0,0.00019694,2]
[359116886,1745715037728,-400.0,0.00019694,2]
[359116887,1745715037738,-400.0,0.00019694,2]
[359116888,1745715037747,-410.75,0.00019694,2]
[359116889,1745715037757,-400.0,0.00019694,2]
[359116891,1745715037767,-400.0,0.00019694,2]
[359116892,1745715037777,-400.0,0.00019694,2]
[359116894,1745715037787,-400.0,0.00019694,2]
[359116896,1745715037797,-400.0,0.00019694,2]
[359116898,1745715037807,-400.0,0.00019694,2]
[359116900,1745715037817,-400.0,0.00019694,2]
[359116902,1745715037827,-400.0,0.00019694,2]
[359116904,1745715037837,-400.0,0.00019694,2]
[359116906,1745715037846,-458.86,0.00019694,2]
[359116908,1745715037856,-400.0,0.00019694,2]
[359116910,1745715037867,-400.0,0.00019694,2]
[359116912,1745715037876,-400.0,0.00019694,2]
[359116914,1745715037886,-400.0,0.00019694,2]
[359116916,1745715037895,-573.56,0.00019694,2]
[359116919,1745715037905,-769.69,0.00019694,2]
[359116922,1745715037916,-503.66766536,0.00019694,2]
[359116924,1745715037925,-400.0,0.00019694,2]
[359116926,1745715037934,-400.0,0.00019694,2]
[359116928,1745715037943,-701.93,0.00019694,2]
[359116930,1745715037952,-507.84,0.00019694,2]
[359116932,1745715037963,-400.0,0.00019694,2]
[359116934,1745715037972,-400.0,0.00019694,2]
[359116936,1745715037981,-400.0,0.00019694,2]
[359116938,1745715037992,-532.29,0.00019694,2]
[359116940,1745715038002,-400.0,0.00019694,2]
[359116942,1745715038011,-400.0,0.00019694,2]
[359116944,1745715038020,-400.0,0.00019694,2]
[359116946,1745715038030,-400.0,0.00019694,2]
[359116948,1745715038039,-400.0,0.00019694,2]
[359116949,1745715038049,-400.0,0.00019694,2]
[359116951,1745715038058,-400.0,0.00019694,2]
[359116953,1745715038067,-400.0,0.00019694,2]
[359116955,1745715038077,-400.0,0.00019694,2]
[359116957,1745715038086,-416.83,0.00019694,2]
[359116959,1745715038095,-400.0,0.00019694,2]
[359116961,1745715038105,-465.1,0.00019694,2]
[359116963,1745715038114,-400.0,0.00019694,2]
[359116965,1745715038125,-400.0,0.00019694,2]
[359116967,1745715038134,-400.0,0.00019694,2]
[359116969,1745715038143,-400.0,0.00019694,2]
[359116971,1745715038154,-400.0,0.00019694,2]
[359116973,1745715038164,-400.0,0.00019694,2]
[359116975,1745715038175,-400.0,0.00019694,2]
[359116977,1745715038184,-504.48,0.00019694,2]
[359116979,1745715038194,-400.0,0.00019694,2]
[359116981,1745715038203,-400.0,0.00019694,2]
[359116983,1745715038212,-400.0,0.00019694,2]
[359116985,1745715038222,-346.10462589,0.00019694,2]
[359116987,1745715038231,-400.0,0.00019694,2]
[359116989,1745715038241,-400.0,0.00019694,2]
[359116991,1745715038251,-400.0,0.00019694,2]
[359116993,1745715038260,-566.94,0.00019694,2]
[359116995,1745715038269,-400.0,0.00019694,2]
[359116997,1745715038279,-400.0,0.00019694,2]
[359116999,1745715038289,-400.0,0.00019694,2]
[359117001,1745715038298,-440.65,0.00019694,2]
[359117003,1745715038307,-202.565733,0.00019694,2]
[359117005,1745715038317,-400.0,0.00019694,2]
[359117007,1745715038326,-400.0,0.00019694,2]
[359117009,1745715038336,-1564.15,0.00019694,2]
[359117011,1745715038346,-400.0,0.00019694,2]
[359117013,1745715038355,-400.0,0.00019694,2]
[359117015,1745715038365,-400.0,0.00019694,2]
[359117017,1745715038374,-400.0,0.00019694,2]
[359117019,1745715038383,-11254.895627,0.00019694,2]
[359117021,1745715038393,-400.0,0.00019694,2]
[359117023,1745715038406,-250.0,0.00019694,2]
[359117025,1745715038417,-400.0,0.00019694,2]
[359117027,1745715038427,-506.29297893,0.00019694,2]
[359117029,1745715038436,-400.0,0.00019694,2]
[359117031,1745715038446,-400.0,0.00019694,2]
[359117033,1745715038457,-400.0,0.00019694,2]
[359117035,1745715038467,-612.32,0.00019694,2]
[359117037,1745715038477,-400.0,0.00019694,2]
[359117039,1745715038487,-400.55,0.00019694,2]
[359117041,1745715038496,-191.770373,0.00019694,2]
[359117043,1745715038506,-417.28,0.00019694,2]
[359117045,1745715038515,-400.0,0.00019694,2]
[359117047,1745715038525,-533.4333648,0.00019694,2]
[359117049,1745715038534,-400.0,0.00019694,2]
[359117051,1745715038544,-445.23,0.00019694,2]
[359117053,1745715038554,-400.0,0.00019694,2]
[359117055,1745715038564,-200.0,0.00019694,2]
[359117057,1745715038574,-422.45,0.00019694,2]
[359117059,1745715038584,-400.0,0.00019694,2]
[359117061,1745715038594,-400.0,0.00019694,2]
[359117063,1745715038603,-400.0,0.00019694,2]
[359117064,1745715038612,-76332.32,0.00019694,2]
[359117066,1745715038622,-1839.28,0.00019694,2]
[359117069,1745715038631,-400.0,0.00019694,2]
[359117070,1745715038641,-400.0,0.00019694,2]
[359117073,1745715038651,-400.0,0.00019694,2]
[359117074,1745715038660,-439.7,0.00019694,2]
[359117076,1745715038670,-500.0,0.00019694,2]
[359117078,1745715038680,-660.28,0.00019694,2]
[359117080,1745715038689,-400.0,0.00019694,2]
[359117082,1745715038699,-200.0,0.00019694,2]
[359117084,1745715038709,-400.0,0.00019694,2]
[359117086,1745715038718,-400.0,0.00019694,2]
[359117088,1745715038728,-443.17,0.00019694,2]
[359117090,1745715038737,-500.0,0.00019694,2]
[359117092,1745715038747,-400.0,0.00019694,2]
[359117094,1745715038756,-500.0,0.00019694,2]
[359117096,1745715038769,-483.25,0.00019694,2]
[359117098,1745715038779,-400.0,0.00019694,2]
[359117100,1745715038789,-400.0,0.00019694,2]
[359117102,1745715038799,-472.51,0.00019694,2]
[359117104,1745715038809,-1172.32,0.00019694,2]
[359117106,1745715038819,-400.0,0.00019694,2]
[359117108,1745715038829,-770.7,0.00019694,2]
[359117110,1745715038839,-400.0,0.00019694,2]
[359117112,1745715038848,-400.0,0.00019694,2]
[359117114,1745715038857,-400.0,0.00019694,2]
[359117116,1745715038867,-449.74,0.00019694,2]
[359117118,1745715038878,-400.0,0.00019694,2]
[359117120,1745715038887,-400.0,0.00019694,2]
[359117122,1745715038897,-485.48,0.00019694,2]
[359117124,1745715038907,-689.71,0.00019694,2]
[359117126,1745715038917,-200.44331616,0.00019694,2]
[359117128,1745715038927,-400.0,0.00019694,2]
[359117130,1745715038937,-400.0,0.00019694,2]
[359117132,1745715038947,-489.09,0.00019694,2]
[359117134,1745715038957,-639.25,0.00019694,2]
[359117136,1745715038967,-400.0,0.00019694,2]
[359117138,1745715038978,-400.0,0.00019694,2]
[359117140,1745715038987,-400.0,0.00019694,2]
[359117142,1745715038998,-400.0,0.00019694,2]
[359117144,1745715039008,-400.0,0.00019694,2]
[359117146,1745715039018,-417.03,0.00019694,2]
[359117148,1745715039028,-400.0,0.00019694,2]
[359117150,1745715039038,-442.0,0.00019694,2]
[359117152,1745715039047,-441.64,0.00019694,2]
[359117154,1745715039057,-400.0,0.00019694,2]
[359117156,1745715039068,-400.0,0.00019694,2]
[359117158,1745715039077,-400.0,0.00019694,2]
[359117160,1745715039087,-400.0,0.00019694,2]
[359117162,1745715039097,-960.46,0.00019694,2]
[359117164,1745715039106,-400.0,0.00019694,2]
[359117166,1745715039116,-500.0,0.00019694,2]
[359117168,1745715039126,-400.0,0.00019694,2]
[359117170,1745715039135,-400.0,0.00019694,2]
[359117172,1745715039145,-465.77,0.00019694,2]
[359117174,1745715039155,-400.0,0.00019694,2]
[359117176,1745715039166,-400.0,0.00019694,2]
[359117178,1745715039176,-527.54017688,0.00019694,2]
[359117180,1745715039185,-433.13,0.00019694,2]
[359117182,1745715039194,-400.0,0.00019694,2]
[359117184,1745715039202,-200.0,0.00019694,2]